bitfinex/quotes_ETHUSD_20260119
["timestamp","ask_amount","ask_price","bid_price","bid_amount"]
[1768788375238,3.42184897,3205.3,3204.6,12.54022606]
[1768788375436,3.42184897,3205.3,3204.6,13.79424867]
[1768788376116,3.42184897,3205.3,3204.6,13.28524867]
[1768788377031,3.42184897,3205.3,3204.6,16.40576189]
[1768788377247,3.42184897,3205.3,3204.6,13.28524867]
[1768788378149,6.54168894,3205.3,3204.6,13.28524867]
[1768788378317,6.54168894,3205.3,3204.6,12.03122606]
[1768788378846,3.42184897,3205.2,3204.6,12.03122606]
[1768788379145,6.54178245,3205.2,3204.6,12.03122606]
[1768788379343,3.42184897,3205.2,3204.6,12.03122606]
[1768788379727,6.54253244,3205.5,3204.7,12.03122606]
[1768788379928,7.55983149,3205.5,3204.7,12.03122606]
[1768788380437,3.42184897,3205.4,3204.7,12.03122606]
[1768788381160,3.42184897,3205.4,3204.5,0.509]
[1768788381343,3.42184897,3205.2,3204.5,0.509]
[1768788381543,3.93284897,3205.2,3204.5,0.509]
[1768788381963,3.93284897,3205.2,3204.4,12.03122606]
[1768788383131,3.93284897,3205.2,3204.4,15.15193367]
[1768788383451,7.0527942,3205.2,3204.5,12.11535799]
[1768788383960,3.93284897,3205.2,3204.5,12.11535799]
[1768788384372,7.05284762,3205.2,3204.5,12.11535799]
[1768788385162,3.63099865,3205.2,3204.5,12.11535799]
[1768788385338,3.42184897,3205.1,3204.5,12.11535799]
[1768788386034,6.54189207,3205.1,3204.8,0.002]
[1768788386263,7.24718128,3205.1,3204.8,0.002]
[1768788388084,3.42184897,3205.0,3204.3,0.002]
[1768788388379,3.42184897,3205.0,3204.3,12.11735799]
[1768788389149,0.512,3205.2,3204.6,12.11535799]
[1768788389578,3.63193327,3205.2,3204.6,12.11535799]
[1768788389943,7.05378224,3205.2,3204.6,12.11535799]
[1768788390458,3.93384897,3205.2,3204.6,12.11535799]
[1768788391586,0.001,3205.2,3204.7,12.11535799]
[1768788391880,0.001,3205.2,3204.9,12.11535799]
[1768788394061,0.001,3205.2,3204.7,12.11535799]
[1768788394782,0.001,3205.2,3204.8,12.11535799]
[1768788395686,0.001,3205.5,3205.0,12.11535799]
[1768788395887,0.001,3205.5,3205.0,14.00194323]
[1768788397085,0.001,3205.5,3205.1,12.11535799]
[1768788398189,3.42283897,3206.5,3205.4,12.14309393]
[1768788398357,3.11876247,3206.4,3205.4,12.14309393]
[1768788398561,3.11876247,3206.4,3205.6,12.14309393]
[1768788399364,3.11876247,3206.4,3205.2,15.77302404]
[1768788399365,3.42283897,3206.3,3205.2,15.77302404]
[1768788399576,3.42283897,3206.2,3205.3,0.51]
[1768788399775,3.42283897,3206.2,3205.3,12.65309393]
[1768788399971,6.23752494,3206.4,3205.3,14.23040591]
[1768788399972,3.11876247,3206.4,3205.3,14.23040591]
[1768788400290,3.11876247,3206.4,3205.5,12.14309393]
[1768788400665,3.93383897,3206.5,3205.5,12.14309393]
[1768788401040,0.511,3206.5,3205.5,12.14309393]
[1768788401491,3.62967944,3206.5,3205.5,12.14309393]
[1768788401689,3.62967944,3206.5,3205.7,12.14309393]
[1768788402464,3.62967944,3206.5,3205.8,12.14309393]
[1768788403079,3.11817898,3207.0,3206.0,12.14309393]
[1768788403281,0.511,3206.9,3206.0,12.14309393]
[1768788403482,3.93383897,3206.9,3206.0,12.14309393]
[1768788404482,3.11837345,3206.8,3206.0,12.14309393]
[1768788404881,3.42283897,3206.7,3205.8,12.14309393]
[1768788405076,4.09760462,3206.7,3205.8,12.14309393]
[1768788405598,4.09760462,3206.7,3205.7,0.509]
[1768788405804,4.09760462,3206.7,3205.7,12.65209393]
[1768788405989,3.42283897,3206.7,3206.0,12.14309393]
[1768788406503,15.67979073,3206.9,3206.1,12.14309393]
[1768788407998,18.79808807,3206.9,3206.1,12.14309393]
[1768788408307,15.67979073,3206.9,3206.1,12.14309393]
[1768788409488,18.79808807,3206.9,3206.1,12.14309393]
[1768788409685,15.67979073,3206.9,3206.1,12.14309393]
[1768788409891,17.55958968,3206.9,3206.1,12.14309393]
[1768788410610,20.67788702,3206.9,3206.1,12.14309393]
[1768788410904,8.62739363,3206.9,3206.1,12.14309393]
[1768788411081,12.05049339,3206.8,3206.1,12.14309393]
[1768788411809,0.001,3206.6,3206.1,12.14309393]
[1768788413708,0.001,3206.6,3206.2,12.31568232]
[1768788419427,0.001,3206.6,3206.3,12.31568232]
[1768788419619,12.65376411,3206.9,3206.4,12.31568232]
[1768788419620,3.11829191,3206.9,3206.4,12.31568232]
[1768788420834,12.14375411,3207.0,3206.4,12.31568232]
[1768788420997,12.14375411,3207.0,3206.0,3.1191312]
[1768788420998,12.14375411,3206.9,3206.0,12.31568232]
[1768788421227,12.14375411,3206.9,3205.7,12.31568232]
[1768788421552,12.14375411,3206.7,3205.4,12.31568232]
[1768788421713,12.14375411,3206.5,3205.4,12.31568232]
[1768788422466,12.14375411,3206.5,3205.6,12.31568232]
[1768788422765,6.2367469,3206.8,3205.8,12.31568232]
[1768788422766,12.65475411,3206.7,3205.8,12.31568232]
[1768788423549,3.11856795,3206.6,3205.9,12.31568232]
[1768788423711,12.65475411,3206.7,3205.9,12.31568232]
[1768788424343,0.511,3206.7,3205.9,13.85918397]
[1768788424558,0.001,3206.6,3205.9,14.36818397]
[1768788424736,12.14375411,3207.9,3205.9,14.36818397]
[1768788425053,12.14375411,3207.9,3206.1,12.31568232]
[1768788425538,12.14375411,3207.7,3206.3,12.31568232]
[1768788425733,12.14375411,3207.7,3206.5,12.31568232]
[1768788425933,12.65475411,3207.7,3206.5,12.31568232]
[1768788426133,12.65475411,3207.7,3206.7,12.31568232]
[1768788426339,14.54370979,3207.7,3206.7,13.59815055]
[1768788427444,12.65475411,3207.7,3206.7,13.59815055]
[1768788427651,15.77234467,3207.7,3206.9,12.31568232]
[1768788428333,12.65475411,3207.7,3206.9,12.31568232]
[1768788428648,0.511,3207.7,3206.9,12.31568232]
[1768788429622,0.511,3207.7,3207.0,12.31568232]
[1768788432135,0.511,3207.7,3207.1,12.31568232]
[1768788432953,3.1170313,3208.2,3207.1,12.31568232]
[1768788433262,12.65475411,3208.1,3207.1,12.31568232]
[1768788433760,12.65475411,3208.1,3207.3,12.31568232]
[1768788433761,15.77191099,3208.1,3207.3,12.31568232]
[1768788433919,12.65475411,3208.1,3207.3,12.31568232]
[1768788434119,12.65475411,3208.1,3207.3,13.85904901]
[1768788434727,15.7718828,3208.1,3207.3,13.85904901]
[1768788435059,3.11711216,3208.1,3207.3,13.85904901]
[1768788435420,1.54260288,3210.6,3207.3,13.85904901]
[1768788435421,12.14375411,3208.9,3207.5,12.31568232]
[1768788435622,12.14375411,3208.6,3207.7,12.31568232]
[1768788435978,12.14375411,3208.6,3207.3,1.54336669]
[1768788435979,12.14375411,3208.3,3207.3,1.54336669]
[1768788436182,12.65475411,3208.3,3207.5,12.31568232]
[1768788436382,0.001,3207.6,3207.3,12.31568232]
[1768788438775,0.001,3207.6,3207.1,12.31568232]
[1768788438973,0.001,3207.6,3207.1,15.43376098]
[1768788439281,0.001,3207.6,3207.2,12.31568232]
[1768788441776,12.14250902,3207.8,3207.2,12.31568232]
[1768788442704,3.11749851,3207.7,3207.2,12.31568232]
[1768788442877,14.97834703,3207.7,3207.2,12.31568232]
[1768788443089,11.86084852,3208.2,3207.2,12.31568232]
[1768788443267,13.60903337,3208.1,3207.3,11.95213355]
[1768788444362,13.09803337,3208.1,3207.3,11.95213355]
[1768788444605,0.511,3208.0,3207.3,11.95213355]
[1768788444784,3.62825511,3208.0,3207.3,11.95213355]
[1768788445290,11.86084852,3208.5,3207.4,11.95213355]
[1768788445602,11.86084852,3208.3,3207.4,11.95213355]
[1768788445899,12.77616026,3209.1,3207.4,11.95213355]
[1768788445900,11.86084852,3208.1,3207.4,11.95213355]
[1768788446070,0.511,3208.0,3207.4,11.95213355]
[1768788446270,0.511,3208.0,3207.4,13.45913492]
[1768788446970,3.62821225,3208.0,3207.4,13.45913492]
[1768788447501,0.511,3208.0,3207.4,13.45913492]
[1768788448794,0.511,3208.0,3207.5,0.002]
[1768788448982,0.511,3208.0,3207.6,11.95213355]
[1768788449184,11.86084852,3207.9,3207.5,0.002]
[1768788449382,3.62820845,3208.0,3207.5,11.95413355]
[1768788449589,15.48905697,3208.0,3207.5,11.95413355]
[1768788450297,3.62820845,3208.0,3207.5,0.002]
[1768788450503,11.86084852,3207.9,3207.5,0.002]
[1768788450702,3.62820845,3208.0,3207.5,0.002]
[1768788450894,0.511,3207.9,3207.5,11.95413355]
[1768788454617,3.62832903,3207.9,3207.5,11.95413355]
[1768788454822,15.48917703,3207.9,3207.5,11.95413355]
[1768788455017,12.37184852,3207.9,3207.5,11.95413355]
[1768788455613,11.86084852,3207.8,3207.2,11.95213355]
[1768788455798,11.86084852,3207.8,3207.1,0.002]
[1768788456525,11.86084852,3207.6,3207.1,0.002]
[1768788456829,11.86084852,3207.4,3207.1,0.002]
[1768788456999,11.86084852,3207.2,3206.7,11.95213355]
[1768788457538,11.86084852,3207.2,3206.5,3.11860508]
[1768788457741,11.86084852,3207.2,3206.6,11.95213355]
[1768788458044,12.73899322,3207.1,3206.4,12.81547053]
[1768788458333,3.11817014,3207.1,3206.4,12.81547053]
[1768788458498,0.511,3207.0,3206.4,12.81547053]
[1768788459137,12.73899322,3207.0,3206.4,12.81547053]
[1768788459435,12.73899322,3207.0,3206.4,0.002]
[1768788460632,15.34626943,3206.9,3206.4,0.002]
[1768788460834,12.22799322,3206.8,3206.4,0.002]
[1768788461141,12.22799322,3206.8,3206.4,12.81547053]
[1768788461345,12.22799322,3206.8,3205.9,12.81347053]
[1768788461346,14.1255387,3206.8,3205.9,12.81347053]
[1768788461943,14.1255387,3206.8,3206.7,0.002]
[1768788462154,14.1255387,3206.8,3205.9,12.81347053]
[1768788462334,14.1255387,3206.8,3206.4,0.002]
[1768788462536,14.1255387,3206.8,3205.9,12.81347053]
[1768788462537,12.22601322,3206.6,3205.9,12.81347053]
[1768788462752,12.22601322,3206.4,3205.6,12.81347053]
[1768788463839,12.22601322,3206.4,3205.2,12.81347053]
[1768788464626,9.86699563,3206.5,3205.4,12.81347053]
[1768788464627,12.22601322,3206.2,3205.4,12.81347053]
[1768788464838,6.23771948,3206.3,3205.4,12.81347053]
[1768788464839,12.22601322,3206.1,3205.4,12.81347053]
[1768788465034,0.511,3206.0,3205.4,12.81347053]
[1768788465454,12.73824586,3206.0,3205.4,12.81347053]
[1768788466825,0.511,3206.0,3205.4,12.81347053]
[1768788467021,3.63015282,3206.0,3205.4,12.81347053]
[1768788467327,3.11909044,3206.1,3205.4,12.81347053]
[1768788467528,1.41255387,3206.7,3205.5,12.81347053]
[1768788467727,3.11802817,3207.2,3205.5,12.81347053]
[1768788467728,12.22724586,3207.2,3205.5,12.81347053]
[1768788467935,6.23577462,3207.3,3205.5,13.17229455]
[1768788467936,3.11788731,3207.3,3205.5,13.17229455]
[1768788468138,3.11788731,3207.3,3205.4,14.07226832]
[1768788468139,3.11771564,3207.5,3205.7,12.81347053]
[1768788468339,0.001,3207.6,3205.9,12.81347053]
[1768788468541,0.001,3207.6,3206.1,12.81347053]
[1768788468758,0.001,3207.6,3206.3,12.81347053]
[1768788470961,0.001,3207.6,3206.5,12.81347053]
[1768788471173,0.001,3207.6,3206.7,12.81347053]
[1768788471474,0.001,3207.6,3206.9,12.81347053]
[1768788472680,3.11683832,3208.4,3206.8,1.33224705]
[1768788472681,12.19292508,3208.4,3207.0,13.43874955]
[1768788472973,0.511,3208.3,3207.2,12.92974955]
[1768788473177,3.62792165,3208.3,3207.4,12.92974955]
[1768788473735,6.7448433,3208.3,3207.4,12.92974955]
[1768788473929,12.19292508,3208.2,3207.0,13.43874955]
[1768788474252,9.86176495,3208.3,3207.0,13.43874955]
[1768788474253,0.001,3207.6,3207.0,13.43874955]
[1768788474969,12.19392508,3207.6,3206.8,1.33224705]
[1768788475138,12.19392508,3207.6,3206.6,0.002]
[1768788475139,13.41331759,3207.6,3206.6,12.93174955]
[1768788475679,13.41331759,3207.6,3206.6,0.002]
[1768788476967,18.42831088,3207.5,3206.6,0.002]
[1768788477166,18.42831088,3207.5,3206.6,12.93174955]
[1768788477400,1.96487034,3207.4,3206.6,12.93174955]
[1768788477577,0.511,3207.3,3206.6,12.93174955]
[1768788479403,3.11798453,3207.2,3206.6,12.93174955]
[1768788480267,12.19292508,3207.1,3206.6,0.002]
[1768788480589,6.23596906,3207.2,3206.6,0.002]
[1768788480590,3.11798453,3207.2,3206.6,0.002]
[1768788480770,0.67469691,3207.1,3206.6,0.002]
[1768788481095,0.67469691,3207.1,3206.6,12.93174955]
[1768788481407,3.11817898,3207.0,3206.6,12.93174955]
[1768788481706,3.11817898,3207.0,3206.6,0.002]
[1768788481909,1.91038989,3206.9,3206.6,0.002]
[1768788482812,6.91094449,3207.1,3206.6,0.002]
[1768788483507,12.19292508,3206.8,3206.3,0.002]
[1768788484566,12.70392508,3206.8,3206.3,0.002]
[1768788485582,6.2369414,3206.7,3206.3,0.002]
[1768788485980,12.19292508,3206.6,3205.9,13.43874955]
[1768788486311,12.19292508,3206.4,3205.7,12.92974955]
[1768788486471,12.70392508,3206.4,3205.7,12.92974955]
[1768788487101,12.70392508,3206.4,3205.5,13.43874955]
[1768788487400,12.19292508,3206.4,3205.6,12.96094495]
[1768788487608,12.19292508,3206.4,3205.6,12.92974955]
[1768788487609,3.11895702,3206.2,3205.6,12.92974955]
[1768788488201,6.23791404,3206.2,3205.6,12.92974955]
[1768788488410,6.23791404,3206.2,3205.2,12.92974955]
[1768788488411,12.70392508,3206.1,3205.2,12.92974955]
[1768788489587,15.82301621,3206.1,3205.2,16.04964879]
[1768788489801,1.58230162,3206.0,3205.3,12.92974955]
[1768788490506,13.7752267,3206.0,3205.3,12.92974955]
[1768788491576,3.11924888,3205.9,3205.3,12.92974955]
[1768788491973,1.58230162,3206.0,3205.3,12.92974955]
[1768788492182,18.43133182,3206.0,3205.3,12.92974955]
[1768788492411,12.19292508,3205.9,3205.1,12.93174955]
[1768788493011,12.19292508,3205.9,3205.3,12.92974955]
[1768788493378,6.23840674,3206.0,3205.3,12.92974955]
[1768788493577,12.19292508,3205.9,3205.1,12.93174955]
[1768788493774,0.70237902,3205.8,3205.1,12.93174955]
[1768788494116,0.511,3206.1,3205.1,12.93174955]
[1768788494288,0.511,3206.1,3205.1,13.29057357]
[1768788494620,0.511,3206.1,3205.1,12.93174955]
[1768788495113,0.511,3206.3,3205.1,12.93174955]
[1768788495473,12.70392508,3206.3,3205.1,12.93174955]
[1768788495677,3.11895702,3206.2,3205.5,12.92974955]
[1768788496274,3.11895702,3206.2,3205.4,3.11973544]
[1768788496275,12.19292508,3206.1,3205.3,12.92974955]
[1768788496478,12.19292508,3206.1,3205.3,16.049573]
[1768788497423,12.19292508,3206.1,3205.3,12.92974955]
[1768788497618,3.11924888,3205.9,3205.3,12.92974955]
[1768788497782,15.82289171,3206.2,3205.6,0.002]
[1768788498280,15.82289171,3206.2,3205.6,12.93174955]
[1768788498281,0.511,3206.2,3205.6,12.93174955]
[1768788499315,12.70392508,3206.2,3205.6,12.93174955]
[1768788500177,18.94190648,3206.2,3205.6,12.93174955]
[1768788500984,19.5324274,3206.2,3205.6,12.93174955]
[1768788501185,16.4134367,3206.2,3205.6,12.93174955]
[1768788502624,19.5324274,3206.2,3205.6,12.93174955]
[1768788502916,4.22051162,3206.2,3205.6,12.93174955]
[1768788503832,0.511,3206.2,3205.6,12.93174955]
[1768788504014,0.511,3206.2,3205.6,16.05126538]
[1768788506019,0.511,3206.2,3205.6,12.93174955]
[1768788506333,3.62997014,3206.2,3205.6,12.93174955]
[1768788506482,0.511,3206.2,3205.6,12.93174955]
[1768788506887,12.30862649,3206.4,3205.6,16.05126655]
[1768788507111,0.511,3206.3,3205.7,12.47148175]
[1768788508531,0.001,3206.5,3205.7,12.47148175]
[1768788508947,0.001,3206.5,3205.8,6.23869236]
[1768788509148,0.001,3206.5,3205.9,14.34249916]
[1768788509641,0.001,3206.5,3205.9,14.85249916]
[1768788510145,0.001,3206.5,3205.9,14.85449916]
[1768788511558,0.001,3206.5,3206.1,12.47148175]
[1768788512123,12.30962649,3206.5,3206.1,12.47148175]
[1768788512326,0.001,3206.5,3206.1,12.47148175]
[1768788513456,12.30962649,3206.5,3205.9,17.97374522]
[1768788513761,13.54058914,3206.5,3205.9,0.002]
[1768788515113,13.54058914,3206.5,3205.6,3.12149526]
[1768788515114,13.54058914,3206.5,3205.6,0.002]
[1768788515310,12.30664649,3206.3,3205.6,0.002]
[1768788515509,12.30664649,3206.1,3205.6,0.002]
[1768788515842,12.81764649,3206.1,3205.6,0.002]
[1768788516535,0.511,3206.0,3205.6,12.47348175]
[1768788516906,12.81764649,3206.0,3205.4,12.47148175]
[1768788517107,12.30664649,3206.0,3205.4,12.47148175]
[1768788517326,3.11915159,3206.0,3205.4,12.47148175]
[1768788517649,0.12306647,3205.9,3205.0,1e-08]
[1768788518348,11.71649486,3205.8,3205.0,1e-08]
[1768788518541,11.71649486,3205.8,3204.3,0.002]
[1768788519135,11.71649486,3205.8,3204.4,12.30402651]
[1768788519329,11.71649486,3205.4,3204.4,12.30402651]
[1768788520434,11.71649486,3205.4,3204.3,0.002]
[1768788521614,11.71649486,3205.2,3204.3,0.002]
[1768788521821,11.71649486,3205.0,3204.3,0.002]
[1768788522563,11.71649486,3205.0,3203.4,12.30602651]
[1768788522761,11.71649486,3204.8,3203.4,12.30602651]
[1768788522959,11.71649486,3204.8,3203.4,12.30002651]
[1768788523453,11.71649486,3204.8,3202.8,0.512]
[1768788523752,11.71649486,3204.6,3203.1,12.30402651]
[1768788523957,11.71649486,3204.4,3203.1,12.30402651]
[1768788524160,11.71649486,3204.2,3203.1,12.30402651]
[1768788526258,11.71649486,3204.0,3203.1,3.12195112]
[1768788526558,11.71649486,3204.0,3203.2,12.30402651]
[1768788527540,3.12100121,3204.1,3203.2,12.30402651]
[1768788527741,11.71649486,3204.0,3203.0,12.30602651]
[1768788528064,11.71649486,3204.0,3203.2,12.30402651]
[1768788528415,17.95830248,3204.2,3203.2,12.30402651]
[1768788528648,17.95830248,3204.2,3203.4,12.30402651]
[1768788528948,14.83739867,3204.2,3203.4,12.30402651]
[1768788529157,17.95830248,3204.2,3203.4,12.30402651]
[1768788529371,1.9181052,3204.1,3203.4,12.30402651]
[1768788529528,17.95830248,3204.2,3203.4,12.30402651]
[1768788529718,14.83739867,3204.2,3203.4,12.30402651]
[1768788529918,14.83724728,3204.4,3203.4,12.30402651]
[1768788530114,0.511,3204.5,3203.4,12.30402651]
[1768788530115,3.12067471,3204.5,3203.4,12.30402651]
[1768788530351,14.83702923,3204.6,3203.4,12.30402651]
[1768788530352,3.12055867,3204.6,3203.4,12.30402651]
[1768788530513,12.22749486,3205.0,3203.7,12.30402651]
[1768788530720,3.12022215,3204.9,3203.9,12.30402651]
[1768788530946,14.83671701,3204.9,3203.9,12.30402651]
[1768788531448,11.71649486,3204.8,3203.8,12.81402651]
[1768788532645,11.71649486,3204.8,3204.0,12.82691295]
[1768788532847,16.32050835,3204.8,3204.0,12.82691295]
[1768788533540,1.48367269,3204.8,3204.0,12.82691295]
[1768788533922,4.60401359,3204.8,3204.0,12.82691295]
[1768788534248,15.43094739,3204.8,3204.0,12.82691295]
[1768788534823,15.43094739,3204.8,3204.0,15.94799474]
[1768788535024,15.43093462,3204.8,3204.0,15.94799474]
[1768788535218,0.001,3204.5,3204.0,15.94799474]
[1768788535965,0.001,3204.5,3204.1,12.82691295]
[1768788536134,0.001,3204.5,3204.3,12.82691295]
[1768788538746,12.31160649,3204.5,3203.9,12.82691295]
[1768788539045,12.31160649,3204.5,3204.3,0.51]
[1768788539438,0.001,3204.5,3204.3,0.51]
[1768788540152,15.43221911,3204.5,3204.3,0.51]
[1768788540454,17.28748623,3204.5,3204.3,2e-08]
[1768788540827,14.16687361,3204.5,3204.3,2e-08]
[1768788541028,1.85626712,3204.5,3204.3,2e-08]
[1768788541247,0.001,3204.5,3204.3,2e-08]
[1768788541923,3.12003126,3205.1,3204.3,12.82691297]
[1768788542137,12.31060649,3205.2,3204.3,12.82691297]
[1768788542138,15.4305381,3205.2,3204.3,12.82691297]
[1768788542335,3.11993161,3205.2,3204.3,14.10960427]
[1768788542761,12.52044956,3203.9,3203.0,0.002]
[1768788543129,12.52044956,3203.7,3203.0,0.002]
[1768788543460,12.52044956,3203.7,3203.1,0.51]
[1768788543629,3.12129346,3203.8,3203.1,13.33691295]
[1768788543829,15.64166109,3203.9,3203.1,13.33691295]
[1768788544030,12.52044956,3203.9,3203.1,13.33691295]
[1768788544360,18.76274629,3204.0,3203.1,13.33691295]
[1768788544528,12.52044956,3203.9,3203.1,13.33691295]
[1768788545561,3.12129346,3203.8,3203.1,12.82691295]
[1768788545757,14.08462386,3203.7,3203.0,0.002]
[1768788546077,12.52044956,3204.0,3203.2,13.33691295]
[1768788547168,12.52044956,3204.0,3202.3,0.51]
[1768788547169,12.52044956,3203.6,3202.3,0.51]
[1768788547460,12.52044956,3203.6,3202.4,0.51]
[1768788547644,12.85567486,3204.0,3201.2,0.002]
[1768788547645,12.52044956,3203.4,3201.3,12.82691295]
[1768788547959,12.52044956,3203.4,3201.5,12.82691295]
[1768788548366,12.52044956,3203.2,3201.5,12.82691295]
[1768788548531,12.52044956,3203.2,3201.6,0.51]
[1768788549241,12.52044956,3203.2,3201.7,0.51]
[1768788549440,12.52044956,3203.0,3201.7,0.51]
[1768788549644,12.52044956,3202.8,3201.7,0.51]
[1768788549849,12.52044956,3202.8,3201.5,12.82691295]
[1768788550033,12.52044956,3202.8,3201.6,0.51]
[1768788550235,12.52044956,3202.8,3201.5,12.82691295]
[1768788550555,12.52044956,3202.6,3201.6,0.51]
[1768788551967,18.76557054,3202.5,3201.6,13.33691295]
[1768788552462,18.76557054,3202.5,3200.8,3.12418294]
[1768788552463,12.52044956,3202.4,3200.3,0.002]
[1768788552710,15.61280245,3202.5,3200.8,0.51]
[1768788552711,15.33377476,3202.3,3200.8,0.51]
[1768788552842,15.33377476,3202.3,3200.7,1e-08]
[1768788553041,15.33377476,3202.3,3200.8,0.51]
[1768788553446,15.33377476,3202.3,3200.7,1e-08]
[1768788553651,12.52044956,3202.1,3200.7,1e-08]
[1768788553854,12.52044956,3201.9,3200.7,1e-08]
[1768788554256,12.52044956,3201.7,3200.7,1e-08]
[1768788554658,12.52044956,3201.5,3200.7,1e-08]
[1768788556148,12.52044956,3201.5,3200.4,1e-08]
[1768788556484,12.52044956,3201.5,3197.9,12.82691295]
[1768788556485,0.16,3199.1,3197.9,12.82691295]
[1768788556783,0.512,3199.6,3198.2,12.82691295]
[1768788556946,0.512,3199.9,3198.4,12.82691295]
[1768788557146,13.03244956,3199.9,3198.6,12.82691295]
[1768788557366,13.03244956,3199.9,3198.7,14.16060424]
[1768788558281,12.52044956,3199.7,3198.8,0.51]
[1768788559254,12.52044956,3199.7,3198.9,0.51]
[1768788559458,3.63709873,3199.9,3198.9,13.33691295]
[1768788559677,6.76219746,3199.9,3198.9,13.33691295]
[1768788559878,19.28264702,3199.9,3198.9,13.33691295]
[1768788560188,12.52044956,3199.8,3198.3,0.002]
[1768788560412,20.30941115,3199.9,3198.3,0.002]
[1768788560413,12.52044956,3199.6,3198.3,0.002]
[1768788560683,12.52044956,3199.4,3198.4,13.33691295]
[1768788560861,2.70163285,3199.5,3198.4,13.33691295]
[1768788561061,2.70163285,3199.5,3198.4,0.51]
[1768788561062,12.52044956,3199.4,3198.4,0.51]
[1768788561376,12.52044956,3199.4,3198.0,0.002]
[1768788561377,0.50999998,3198.3,3198.0,0.002]
[1768788561679,0.4620916,3198.3,3198.1,0.51]
[1768788561885,0.4620916,3198.3,3198.0,0.002]
[1768788562064,0.4620916,3198.3,3198.1,0.51]
[1768788562514,0.4620916,3198.3,3198.1,13.33691295]
[1768788562786,15.98714782,3199.3,3198.1,13.33691295]
[1768788563361,19.11283156,3199.3,3198.1,13.33691295]
[1768788563986,19.11283156,3199.3,3198.0,0.002]
[1768788563987,12.86146408,3199.2,3198.0,0.002]
[1768788564491,12.86146408,3199.0,3198.0,0.002]
[1768788564689,9.37763745,3199.1,3198.0,0.002]
[1768788564690,12.86146408,3198.8,3198.0,0.002]
[1768788564993,12.86146408,3198.8,3198.0,2e-08]
[1768788565189,12.86146408,3198.8,3197.5,12.43336926]
[1768788565498,12.86146408,3198.8,3197.6,0.511]
[1768788565798,12.86146408,3198.8,3197.7,12.43336926]
[1768788566015,1.55973742,3198.8,3197.9,12.43336926]
[1768788566204,2.73591015,3198.9,3197.9,12.43336926]
[1768788566491,6.25234462,3198.8,3197.9,12.43336926]
[1768788567391,19.1138087,3198.8,3197.9,12.43336926]
[1768788568091,15.98763639,3198.8,3197.9,15.5604209]
[1768788568280,6.25234462,3198.8,3198.0,12.43336926]
[1768788568481,0.89882548,3198.7,3198.1,0.511]
[1768788568678,0.89882548,3198.7,3198.0,12.43336926]
[1768788568876,0.89882548,3198.7,3198.2,0.511]
[1768788569193,12.86146408,3197.9,3196.7,12.43536926]
[1768788569977,12.86146408,3197.9,3196.8,12.94436926]
[1768788570392,12.86146408,3197.7,3196.7,0.002]
[1768788570690,12.86146408,3197.7,3196.7,2e-08]
[1768788571068,12.86146408,3197.7,3196.6,0.511]
[1768788571294,2.22429138,3197.6,3196.7,0.511]
[1768788571494,3.12709495,3197.9,3196.7,12.94436926]
[1768788571792,12.86146408,3198.5,3197.9,0.002]
[1768788571969,12.86146408,3198.5,3197.6,0.511]
[1768788572171,12.86146408,3198.4,3196.7,12.43336926]
[1768788572382,6.2535176,3198.2,3197.1,12.43336926]
[1768788572587,12.86146408,3198.0,3195.4,0.27310465]
[1768788572897,12.86146408,3197.0,3195.8,12.43336926]
[1768788573064,1.28752119,3196.9,3195.8,12.43336926]
[1768788573391,1.28752119,3196.9,3195.8,15.56246902]
[1768788573692,1.28752119,3196.9,3195.8,12.43336926]
[1768788573891,1.28752119,3196.9,3195.9,0.511]
[1768788574595,3.12812812,3196.8,3195.9,0.511]
[1768788574807,3.12812812,3196.8,3194.1,0.16320757]
[1768788574808,12.86146408,3196.2,3194.1,15.57730211]
[1768788574974,12.86146408,3195.9,3194.2,12.43336926]
[1768788575296,1.28614641,3195.8,3194.4,12.43336926]
[1768788575597,7.91163318,3195.8,3194.5,0.511]
[1768788575897,8.42363318,3195.8,3193.9,12.43336926]
[1768788576075,12.86146408,3195.6,3194.1,0.511]
[1768788576588,12.86146408,3195.4,3193.9,12.43336926]
[1768788576774,12.86146408,3195.4,3194.2,0.511]
[1768788576775,13.37446408,3195.4,3194.2,0.511]
[1768788577101,12.86146408,3195.2,3194.2,0.511]
[1768788577261,12.86146408,3195.2,3193.9,15.56424201]
[1768788577262,12.86146408,3195.2,3194.3,0.511]
[1768788578393,12.86146408,3195.2,3194.4,0.511]
[1768788578596,3.12979249,3195.1,3194.4,0.511]
[1768788578764,3.12940499,3195.5,3194.4,12.58701284]
[1768788578971,3.12940499,3195.5,3194.5,12.07601284]
[1768788578972,6.57175005,3195.5,3194.5,12.07601284]
[1768788579294,0.31294007,3195.5,3194.5,12.07601284]
[1768788579699,0.513,3196.0,3194.5,12.07601284]
[1768788579700,11.82230313,3196.2,3194.5,12.07601284]
[1768788579868,6.25772628,3196.1,3194.5,12.07601284]
[1768788580598,6.25772628,3196.1,3194.4,6.77195666]
[1768788580599,9.38658942,3196.1,3194.7,12.07601284]
[1768788580783,9.38658942,3196.1,3194.6,3.13028235]
[1768788580784,6.25772628,3196.1,3194.8,12.58701284]
[1768788580984,1.80800294,3196.0,3194.9,12.07601284]
[1768788581421,11.82230313,3196.2,3194.9,12.07601284]
[1768788581422,3.12873478,3196.2,3194.9,12.07601284]
[1768788581768,3.12873478,3196.2,3194.6,9.39084705]
[1768788581769,3.12860784,3196.4,3195.1,12.07601284]
[1768788582096,0.44156493,3196.7,3195.1,12.07601284]
[1768788582097,3.12832384,3196.6,3195.1,12.07601284]
[1768788582397,6.25664768,3196.6,3195.1,12.07601284]
[1768788582584,6.25664768,3196.6,3195.0,0.511]
[1768788582585,6.25664768,3196.6,3195.3,12.07601284]
[1768788582809,6.92646894,3196.6,3195.5,12.07601284]
[1768788583117,3.7981451,3196.6,3195.6,12.58701284]
[1768788583421,6.92646894,3196.6,3195.6,12.58701284]
[1768788583722,3.7981451,3196.6,3195.7,0.511]
[1768788583898,0.001,3196.3,3195.7,0.511]
[1768788584314,0.001,3196.3,3195.6,12.07601284]
[1768788584629,0.001,3196.3,3195.7,0.511]
[1768788584921,0.001,3196.3,3195.8,0.511]
[1768788585106,0.001,3196.3,3195.6,12.07601284]
[1768788585313,0.001,3196.3,3195.9,0.511]
[1768788585799,3.12763894,3197.3,3195.9,12.58701284]
[1768788586000,6.25527788,3197.3,3196.1,12.07601284]
[1768788586785,6.25508224,3197.4,3196.2,12.07601284]
[1768788587301,9.38262336,3197.4,3196.2,12.07601284]
[1768788587507,6.25508224,3197.4,3196.2,12.07601284]